[Event "Early-Titled-Tuesday-Blitz-September-12-2023"]
[Site "Chess.com"]
[Date "2023.09.12"]
[Round "7"]
[White "Vision_64"]
[Black "masnyszachistaaa"]
[Result "0-1"]
[WhiteElo "2359"]
[BlackElo "2549"]
[TimeControl "180+1"]
[EndTime "9:18:54 PDT"]
[Termination "masnyszachistaaa won by resignation"]

1. e4 {[%clk 0:02:59.7]} 1... e6 {[%clk 0:02:52.6]} 2. d4 {[%clk 0:02:59.1]}
2... d5 {[%clk 0:02:52.7]} 3. Bd3 {[%clk 0:02:59.8]} 3... dxe4 {[%clk
0:02:52.3]} 4. Bxe4 {[%clk 0:02:59.7]} 4... Nf6 {[%clk 0:02:52.7]} 5. Bf3 {[%clk
0:02:59.6]} 5... c5 {[%clk 0:02:53]} 6. Ne2 {[%clk 0:02:59.6]} 6... Nc6 {[%clk
0:02:53.1]} 7. Be3 {[%clk 0:02:54.3]} 7... Nd5 {[%clk 0:02:36.8]} 8. Bxd5 {[%clk
0:02:38.9]} 8... Qxd5 {[%clk 0:02:37.7]} 9. Nbc3 {[%clk 0:02:39.5]} 9... Qxg2
{[%clk 0:02:36.1]} 10. Rg1 {[%clk 0:02:34.9]} 10... Qxh2 {[%clk 0:02:04.8]} 11.
Bf4 {[%clk 0:02:28.3]} 11... Qh5 {[%clk 0:01:39.8]} 12. Nb5 {[%clk 0:02:26.4]}
12... Ke7 {[%clk 0:01:34.6]} 13. dxc5 {[%clk 0:01:43.5]} 13... Qd5 {[%clk
0:01:23.1]} 14. Nc7 {[%clk 0:01:35.7]} 14... Qxd1+ {[%clk 0:01:17.3]} 15. Rxd1
{[%clk 0:01:36.6]} 15... Rb8 {[%clk 0:01:17.6]} 16. Bd6+ {[%clk 0:01:21.7]}
16... Kf6 {[%clk 0:01:16.4]} 17. Ne8+ {[%clk 0:01:21]} 17... Kf5 {[%clk
0:01:12.3]} 18. Ng3+ {[%clk 0:01:20.2]} 18... Kg6 {[%clk 0:00:58.5]} 19. Bxb8
{[%clk 0:01:00.6]} 19... Nxb8 {[%clk 0:00:57.9]} 20. Nd6 {[%clk 0:00:58.1]}
20... Bxd6 {[%clk 0:00:49.4]} 21. cxd6 {[%clk 0:00:59]} 21... f6 {[%clk
0:00:33.9]} 22. Ne4+ {[%clk 0:00:50.4]} 22... Kf7 {[%clk 0:00:34.1]} 23. c4
{[%clk 0:00:51.1]} 23... Bd7 {[%clk 0:00:30]} 24. Nc5 {[%clk 0:00:50.1]} 24...
Rc8 {[%clk 0:00:24.1]} 25. b4 {[%clk 0:00:41]} 25... b6 {[%clk 0:00:22.7]} 26.
Nxd7 {[%clk 0:00:37.2]} 26... Nxd7 {[%clk 0:00:23.6]} 27. Rd4 {[%clk 0:00:34.4]}
27... g6 {[%clk 0:00:18.2]} 28. Kd2 {[%clk 0:00:31.4]} 28... Ne5 {[%clk
0:00:16.8]} 29. Kc3 {[%clk 0:00:20.3]} 29... Nf3 {[%clk 0:00:15.6]} 30. d7
{[%clk 0:00:19.1]} 30... Rd8 {[%clk 0:00:15.7]} 31. Rh1 {[%clk 0:00:15.1]} 31...
Nxd4 {[%clk 0:00:13]} 32. Kxd4 {[%clk 0:00:11.1]} 32... h5 {[%clk 0:00:12.8]}
33. c5 {[%clk 0:00:10.7]} 33... Rxd7+ {[%clk 0:00:12.8]} 34. Kc4 {[%clk
0:00:11.2]} 34... bxc5 {[%clk 0:00:12.8]} 35. bxc5 {[%clk 0:00:11.6]} 35... Rd2
{[%clk 0:00:11.1]} 36. Kb5 {[%clk 0:00:12]} 36... Rb2+ {[%clk 0:00:10.4]} 37.
Ka6 {[%clk 0:00:10.3]} 37... Rxa2+ {[%clk 0:00:10.3]} 38. Kb7 {[%clk 0:00:11.2]}
38... Rxf2 {[%clk 0:00:07.3]} 39. c6 {[%clk 0:00:12.1]} 39... Rb2+ {[%clk
0:00:07.1]} 40. Kxa7 {[%clk 0:00:11.8]} 40... Rc2 {[%clk 0:00:07.8]} 41. Kb7
{[%clk 0:00:11.8]} 41... f5 {[%clk 0:00:07.3]} 42. c7 {[%clk 0:00:12.1]} 42...
Kf6 {[%clk 0:00:05.9]} 43. c8=Q {[%clk 0:00:11.9]} 43... Rxc8 {[%clk 0:00:06.8]}
44. Kxc8 {[%clk 0:00:12.8]} 44... f4 {[%clk 0:00:06.2]} 45. Kd7 {[%clk
0:00:13.7]} 45... Kf5 {[%clk 0:00:04.6]} 46. Kd6 {[%clk 0:00:14.6]} 46... f3
{[%clk 0:00:04.3]} 47. Kc5 {[%clk 0:00:14.9]} 47... Ke4 {[%clk 0:00:04.1]} 48.
Kc4 {[%clk 0:00:15.3]} 48... f2 {[%clk 0:00:03.4]} 49. Rf1 {[%clk 0:00:15.7]}
49... Kf3 {[%clk 0:00:03.7]} 50. Kd3 {[%clk 0:00:15.9]} 50... g5 {[%clk
0:00:03.3]} 51. Kd2 {[%clk 0:00:15.7]} 51... g4 {[%clk 0:00:03.5]} 52. Kd1
{[%clk 0:00:16.1]} 52... g3 {[%clk 0:00:03.9]} 53. Rh1 {[%clk 0:00:16.6]} 53...
g2 {[%clk 0:00:03.3]} 54. Rxh5 {[%clk 0:00:16]} 54... f1=Q+ {[%clk 0:00:03.5]}
55. Kd2 {[%clk 0:00:16.9]} 55... Qe2+ {[%clk 0:00:04.1]} 56. Kc3 {[%clk
0:00:17.2]} 56... Qe3+ {[%clk 0:00:04.4]} 57. Kc4 {[%clk 0:00:17.1]} 57... g1=Q
{[%clk 0:00:04.8]} 0-1

[Event "Early-Titled-Tuesday-Blitz-September-12-2023"]
[Site "Chess.com"]
[Date "2023.09.12"]
[Round "7"]
[White "Zohid6"]
[Black "Kacparov"]
[Result "0-1"]
[WhiteElo "2733"]
[BlackElo "2913"]
[TimeControl "180+1"]
[EndTime "9:18:57 PDT"]
[Termination "Kacparov won by checkmate"]

1. d4 {[%clk 0:03:00.9]} 1... Nf6 {[%clk 0:02:59.7]} 2. Nc3 {[%clk 0:03:01]}
2... d5 {[%clk 0:02:58.6]} 3. Bf4 {[%clk 0:03:00.9]} 3... g6 {[%clk 0:02:58.6]}
4. e3 {[%clk 0:03:00.1]} 4... Bg7 {[%clk 0:02:58.5]} 5. h4 {[%clk 0:03:00.9]}
5... c6 {[%clk 0:02:56.9]} 6. Bd3 {[%clk 0:02:59.7]} 6... Nbd7 {[%clk 0:02:50]}
7. g4 {[%clk 0:02:54.3]} 7... h6 {[%clk 0:02:39.5]} 8. h5 {[%clk 0:02:39.2]}
8... g5 {[%clk 0:02:38.5]} 9. Bg3 {[%clk 0:02:39.5]} 9... Qb6 {[%clk 0:02:34.6]}
10. Rb1 {[%clk 0:02:25.3]} 10... a6 {[%clk 0:02:22.5]} 11. b4 {[%clk 0:02:24.9]}
11... Qd8 {[%clk 0:02:20.1]} 12. f4 {[%clk 0:02:21.5]} 12... Nb6 {[%clk
0:02:17.7]} 13. fxg5 {[%clk 0:02:13.9]} 13... hxg5 {[%clk 0:02:09]} 14. Be2
{[%clk 0:02:10.4]} 14... Nc4 {[%clk 0:02:06.1]} 15. Qd3 {[%clk 0:02:05.6]} 15...
Nxg4 {[%clk 0:01:56.3]} 16. e4 {[%clk 0:02:01.9]} 16... Nge3 {[%clk 0:01:50.6]}
17. Nf3 {[%clk 0:01:41.8]} 17... dxe4 {[%clk 0:01:48.7]} 18. Nxe4 {[%clk
0:01:41.2]} 18... Bf5 {[%clk 0:01:47.7]} 19. Bf2 {[%clk 0:01:15.6]} 19... Qd5
{[%clk 0:01:38.2]} 20. Nfxg5 {[%clk 0:01:07.1]} 20... Bxd4 {[%clk 0:01:20.1]}
21. Bf3 {[%clk 0:00:58.5]} 21... Ne5 {[%clk 0:01:02.8]} 22. Qe2 {[%clk
0:00:57.6]} 22... Nxf3+ {[%clk 0:00:52.4]} 23. Qxf3 {[%clk 0:00:58.5]} 23...
Nxc2+ {[%clk 0:00:50.3]} 24. Kf1 {[%clk 0:00:55.6]} 24... Bxf2 {[%clk 0:00:50]}
25. Kxf2 {[%clk 0:00:55.4]} 25... Qd4+ {[%clk 0:00:41.9]} 26. Kg3 {[%clk
0:00:48.4]} 26... Qe5+ {[%clk 0:00:41.1]} 27. Qf4 {[%clk 0:00:45.3]} 27... Qxf4+
{[%clk 0:00:37]} 28. Kxf4 {[%clk 0:00:45.7]} 28... Bxe4 {[%clk 0:00:37.1]} 29.
Kxe4 {[%clk 0:00:46.6]} 29... Na3 {[%clk 0:00:33.6]} 30. Rbf1 {[%clk 0:00:39.3]}
30... f6 {[%clk 0:00:30.9]} 31. Ne6 {[%clk 0:00:39.8]} 31... Nb5 {[%clk
0:00:30]} 32. h6 {[%clk 0:00:28.8]} 32... Nd6+ {[%clk 0:00:29.8]} 33. Kf3 {[%clk
0:00:27.8]} 33... Kf7 {[%clk 0:00:29.3]} 34. Nc5 {[%clk 0:00:24.7]} 34... a5
{[%clk 0:00:24.9]} 35. Rfg1 {[%clk 0:00:23.7]} 35... Rh7 {[%clk 0:00:23.3]} 36.
b5 {[%clk 0:00:12.9]} 36... cxb5 {[%clk 0:00:22.7]} 37. Rh5 {[%clk 0:00:08.6]}
37... Rc8 {[%clk 0:00:22.5]} 38. a3 {[%clk 0:00:07]} 38... b6 {[%clk 0:00:22.8]}
39. Nd3 {[%clk 0:00:06.5]} 39... Rc3 {[%clk 0:00:22.5]} 40. Ke2 {[%clk 0:00:07]}
40... Rxa3 {[%clk 0:00:22.2]} 41. Nf4 {[%clk 0:00:07.4]} 41... Ra2+ {[%clk
0:00:20.7]} 42. Kd3 {[%clk 0:00:07.3]} 42... Ra3+ {[%clk 0:00:21.2]} 43. Kc2
{[%clk 0:00:07]} 43... Ra4 {[%clk 0:00:21.6]} 44. Nd5 {[%clk 0:00:07.1]} 44...
Rc4+ {[%clk 0:00:19.8]} 45. Kd3 {[%clk 0:00:06.7]} 45... Rc5 {[%clk 0:00:19.5]}
46. Kd4 {[%clk 0:00:07.3]} 46... b4 {[%clk 0:00:18.6]} 47. Rg3 {[%clk
0:00:04.3]} 47... Nb5+ {[%clk 0:00:18.5]} 48. Kd3 {[%clk 0:00:02.3]} 48... Nc3
{[%clk 0:00:17.9]} 49. Nf4 {[%clk 0:00:02]} 49... Rxh5 {[%clk 0:00:17.1]} 50.
Nxh5 {[%clk 0:00:02.9]} 50... Rxh6 {[%clk 0:00:17.3]} 51. Nf4 {[%clk 0:00:03.4]}
51... e5 {[%clk 0:00:16.7]} 52. Ng2 {[%clk 0:00:03.6]} 52... f5 {[%clk
0:00:15.9]} 53. Rg5 {[%clk 0:00:01.9]} 53... Kf6 {[%clk 0:00:16]} 54. Rg8 {[%clk
0:00:02]} 54... Rh3+ {[%clk 0:00:16.2]} 55. Kc4 {[%clk 0:00:02]} 55... Ne4
{[%clk 0:00:15.8]} 56. Rb8 {[%clk 0:00:01.6]} 56... Rc3+ {[%clk 0:00:15.2]} 57.
Kd5 {[%clk 0:00:02.1]} 57... Rc5# {[%clk 0:00:14.8]} 0-1

[Event "Early-Titled-Tuesday-Blitz-September-12-2023"]
[Site "Chess.com"]
[Date "2023.09.12"]
[Round "7"]
[White "Bilan_Danila"]
[Black "Cheer_Down"]
[Result "0-1"]
[WhiteElo "2583"]
[BlackElo "2432"]
[TimeControl "180+1"]
[EndTime "9:18:58 PDT"]
[Termination "Cheer_Down won on time"]

1. d4 {[%clk 0:02:53.1]} 1... d5 {[%clk 0:02:59.9]} 2. Nf3 {[%clk 0:02:53.2]}
2... Nf6 {[%clk 0:02:59.9]} 3. c4 {[%clk 0:02:53]} 3... e6 {[%clk 0:03:00.1]} 4.
Nc3 {[%clk 0:02:52.4]} 4... c5 {[%clk 0:03:00.3]} 5. cxd5 {[%clk 0:02:52.2]}
5... Nxd5 {[%clk 0:03:00.5]} 6. e4 {[%clk 0:02:52.1]} 6... Nxc3 {[%clk
0:03:00.6]} 7. bxc3 {[%clk 0:02:53]} 7... cxd4 {[%clk 0:03:00.9]} 8. cxd4 {[%clk
0:02:53.9]} 8... Bb4+ {[%clk 0:03:01]} 9. Bd2 {[%clk 0:02:54.5]} 9... Bxd2+
{[%clk 0:03:01.3]} 10. Qxd2 {[%clk 0:02:55.4]} 10... O-O {[%clk 0:03:01.5]} 11.
Bc4 {[%clk 0:02:56]} 11... Nd7 {[%clk 0:02:59.7]} 12. O-O {[%clk 0:02:56.1]}
12... b6 {[%clk 0:02:59]} 13. Rad1 {[%clk 0:02:55.9]} 13... Bb7 {[%clk
0:02:58.8]} 14. Rfe1 {[%clk 0:02:54.7]} 14... Rc8 {[%clk 0:02:59]} 15. Bb3
{[%clk 0:02:50.6]} 15... h6 {[%clk 0:02:58.7]} 16. h3 {[%clk 0:02:44.3]} 16...
Nf6 {[%clk 0:02:58.2]} 17. d5 {[%clk 0:02:38.2]} 17... exd5 {[%clk 0:02:43.4]}
18. exd5 {[%clk 0:02:39.1]} 18... Rc5 {[%clk 0:02:34.5]} 19. Re5 {[%clk
0:02:07.8]} 19... Qd6 {[%clk 0:02:31.4]} 20. g4 {[%clk 0:01:42.9]} 20... Rd8
{[%clk 0:02:11.7]} 21. g5 {[%clk 0:01:37.8]} 21... Nd7 {[%clk 0:02:08.2]} 22.
Re4 {[%clk 0:00:51.3]} 22... hxg5 {[%clk 0:02:01.2]} 23. Qxg5 {[%clk 0:00:52.2]}
23... Nf6 {[%clk 0:01:58.6]} 24. Re5 {[%clk 0:00:30.5]} 24... Bxd5 {[%clk
0:01:33.1]} 25. Bxd5 {[%clk 0:00:15.6]} 25... Rxd5 {[%clk 0:01:31.9]} 26. Rexd5
{[%clk 0:00:08.6]} 26... Nxd5 {[%clk 0:01:30.5]} 27. Nh4 {[%clk 0:00:07.5]}
27... f6 {[%clk 0:01:27.4]} 28. Qg4 {[%clk 0:00:02.9]} 28... g5 {[%clk
0:00:59.9]} 29. Nf5 {[%clk 0:00:03.1]} 29... Qe5 {[%clk 0:00:59.9]} 30. Rd3
{[%clk 0:00:02.4]} 30... Re8 {[%clk 0:00:54.2]} 31. Rg3 {[%clk 0:00:01.7]} 31...
Nf4 {[%clk 0:00:49.6]} 32. Kh2 {[%clk 0:00:01.2]} 32... Ne2 {[%clk 0:00:43.9]}
33. Qh5 {[%clk 0:00:01.2]} 33... Nf4 {[%clk 0:00:32.1]} 34. Qh6 {[%clk
0:00:01.5]} 34... Qxf5 {[%clk 0:00:31.6]} 35. h4 {[%clk 0:00:01.4]} 35... Qg6
{[%clk 0:00:28.9]} 36. Qxg6+ {[%clk 0:00:02]} 36... Nxg6 {[%clk 0:00:28.4]} 37.
hxg5 {[%clk 0:00:02.9]} 37... f5 {[%clk 0:00:29.1]} 38. Rc3 {[%clk 0:00:02.4]}
38... Re7 {[%clk 0:00:28.7]} 39. Kg3 {[%clk 0:00:03]} 39... Kg7 {[%clk 0:00:29]}
40. f4 {[%clk 0:00:03.5]} 40... Rb7 {[%clk 0:00:25]} 41. Rc6 {[%clk 0:00:03.8]}
41... b5 {[%clk 0:00:24.4]} 42. Rc5 {[%clk 0:00:04.4]} 42... Ne7 {[%clk
0:00:23.1]} 43. Kf3 {[%clk 0:00:04.9]} 43... a5 {[%clk 0:00:23.3]} 44. Ke3
{[%clk 0:00:03]} 44... Kf7 {[%clk 0:00:19.8]} 45. Kd4 {[%clk 0:00:03.2]} 45...
Ke6 {[%clk 0:00:19.9]} 46. Rc2 {[%clk 0:00:01.1]} 46... b4 {[%clk 0:00:19.4]}
47. Ke3 {[%clk 0:00:01.3]} 47... a4 {[%clk 0:00:19.3]} 48. Re2 {[%clk
0:00:00.5]} 48... b3 {[%clk 0:00:18.6]} 49. axb3 {[%clk 0:00:01.4]} 49... axb3
{[%clk 0:00:19.4]} 50. Kd3+ {[%clk 0:00:02.3]} 50... Kf7 {[%clk 0:00:19.1]} 51.
Kc3 {[%clk 0:00:03.2]} 51... Ng6 {[%clk 0:00:19.1]} 52. Rf2 {[%clk 0:00:03]}
52... Ke6 {[%clk 0:00:19]} 53. Kb2 {[%clk 0:00:03.4]} 53... Kd5 {[%clk
0:00:19.3]} 54. Re2 {[%clk 0:00:01.9]} 54... Nxf4 {[%clk 0:00:18.5]} 55. Re8
{[%clk 0:00:02.2]} 55... Nd3+ {[%clk 0:00:18.2]} 56. Kb1 {[%clk 0:00:02.2]}
56... f4 {[%clk 0:00:18]} 57. g6 {[%clk 0:00:02.2]} 57... b2 {[%clk 0:00:16.6]}
58. Rf8 {[%clk 0:00:01.5]} 58... Rg7 {[%clk 0:00:16.1]} 0-1

[Event "Early-Titled-Tuesday-Blitz-September-12-2023"]
[Site "Chess.com"]
[Date "2023.09.12"]
[Round "7"]
[White "BatboldNyamsuren0919"]
[Black "Doomfist26"]
[Result "1-0"]
[WhiteElo "2506"]
[BlackElo "2614"]
[TimeControl "180+1"]
[EndTime "9:18:58 PDT"]
[Termination "BatboldNyamsuren0919 won on time"]

1. d4 {[%clk 0:03:00.9]} 1... Nf6 {[%clk 0:03:00]} 2. c4 {[%clk 0:02:54.1]} 2...
g6 {[%clk 0:02:59.9]} 3. Nc3 {[%clk 0:02:52.1]} 3... Bg7 {[%clk 0:02:57.7]} 4.
e4 {[%clk 0:02:52.2]} 4... d6 {[%clk 0:02:58.2]} 5. f3 {[%clk 0:02:50.4]} 5...
O-O {[%clk 0:02:57.9]} 6. Be3 {[%clk 0:02:51]} 6... c5 {[%clk 0:02:58.2]} 7.
dxc5 {[%clk 0:02:51]} 7... dxc5 {[%clk 0:02:58.4]} 8. Qxd8 {[%clk 0:02:50.7]}
8... Rxd8 {[%clk 0:02:58.9]} 9. Bxc5 {[%clk 0:02:51.2]} 9... Nc6 {[%clk
0:02:59.1]} 10. Be3 {[%clk 0:02:51.2]} 10... Be6 {[%clk 0:02:40.6]} 11. Rd1
{[%clk 0:02:45.4]} 11... Nd7 {[%clk 0:02:27.1]} 12. Nge2 {[%clk 0:02:28.1]}
12... Bxc4 {[%clk 0:02:21.3]} 13. Nd4 {[%clk 0:02:28.3]} 13... Bxf1 {[%clk
0:02:16.7]} 14. Rxf1 {[%clk 0:02:25.1]} 14... Nb6 {[%clk 0:01:50.1]} 15. Nxc6
{[%clk 0:02:20.8]} 15... bxc6 {[%clk 0:01:49.4]} 16. Ke2 {[%clk 0:02:11.6]}
16... Nc4 {[%clk 0:01:48.1]} 17. Bc1 {[%clk 0:02:10.3]} 17... Rxd1 {[%clk
0:01:40.7]} 18. Rxd1 {[%clk 0:02:10]} 18... Rb8 {[%clk 0:01:41.4]} 19. b3 {[%clk
0:01:57.3]} 19... Nb6 {[%clk 0:01:31.2]} 20. Bf4 {[%clk 0:01:49.4]} 20... Rc8
{[%clk 0:01:22.9]} 21. Kd3 {[%clk 0:01:40]} 21... Kf8 {[%clk 0:01:01.2]} 22. Kc2
{[%clk 0:01:37.5]} 22... Ke8 {[%clk 0:01:00.4]} 23. Ne2 {[%clk 0:01:36.7]} 23...
c5 {[%clk 0:00:59.5]} 24. Be3 {[%clk 0:01:34.3]} 24... Nd7 {[%clk 0:00:55.3]}
25. Nf4 {[%clk 0:01:31.8]} 25... e6 {[%clk 0:00:53.2]} 26. Rd6 {[%clk
0:01:19.8]} 26... c4 {[%clk 0:00:45.4]} 27. b4 {[%clk 0:01:13.2]} 27... Bf8
{[%clk 0:00:36.5]} 28. Ra6 {[%clk 0:01:09.5]} 28... Bxb4 {[%clk 0:00:37]} 29.
Rxa7 {[%clk 0:01:08.1]} 29... Ne5 {[%clk 0:00:36]} 30. a3 {[%clk 0:01:04.5]}
30... Be7 {[%clk 0:00:32.8]} 31. a4 {[%clk 0:01:03.4]} 31... Nc6 {[%clk
0:00:31.1]} 32. Rb7 {[%clk 0:00:56.5]} 32... Ra8 {[%clk 0:00:28.9]} 33. Rb6
{[%clk 0:00:51.2]} 33... Nb4+ {[%clk 0:00:25.6]} 34. Kc3 {[%clk 0:00:41.3]}
34... Rxa4 {[%clk 0:00:25.7]} 35. Rb8+ {[%clk 0:00:41.1]} 35... Kd7 {[%clk
0:00:25.4]} 36. Rb7+ {[%clk 0:00:40.6]} 36... Kd8 {[%clk 0:00:11.9]} 37. Bb6+
{[%clk 0:00:39.8]} 37... Ke8 {[%clk 0:00:12.2]} 38. Kxc4 {[%clk 0:00:30.8]}
38... Nd5+ {[%clk 0:00:11.1]} 39. Kb5 {[%clk 0:00:29.6]} 39... Rb4+ {[%clk
0:00:11.3]} 40. Kc6 {[%clk 0:00:29.4]} 40... Rc4+ {[%clk 0:00:11.8]} 41. Kb5
{[%clk 0:00:29.1]} 41... Rb4+ {[%clk 0:00:08.6]} 42. Kc6 {[%clk 0:00:29.1]}
42... Rxb6+ {[%clk 0:00:04.2]} 43. Rxb6 {[%clk 0:00:28.8]} 43... Nxb6 {[%clk
0:00:04.8]} 44. Kxb6 {[%clk 0:00:28.7]} 44... Bd6 {[%clk 0:00:05.5]} 45. g3
{[%clk 0:00:27.4]} 45... Kd7 {[%clk 0:00:03.6]} 46. Nd3 {[%clk 0:00:25.6]} 46...
h5 {[%clk 0:00:03.2]} 47. Nc5+ {[%clk 0:00:22.7]} 47... Ke7 {[%clk 0:00:03.1]}
48. Kc6 {[%clk 0:00:22.4]} 48... h4 {[%clk 0:00:03]} 49. gxh4 {[%clk 0:00:21]}
49... Bxh2 {[%clk 0:00:03.6]} 50. Nd3 {[%clk 0:00:15.3]} 50... Bg3 {[%clk
0:00:03.8]} 51. Kc5 {[%clk 0:00:09.2]} 51... Bxh4 {[%clk 0:00:04.1]} 52. Kd4
{[%clk 0:00:09.4]} 52... Kf6 {[%clk 0:00:03.9]} 53. Ke3 {[%clk 0:00:09.3]} 53...
e5 {[%clk 0:00:02]} 54. Nc5 {[%clk 0:00:09.2]} 1-0

[Event "Early-Titled-Tuesday-Blitz-September-12-2023"]
[Site "Chess.com"]
[Date "2023.09.12"]
[Round "7"]
[White "MartinMatthiesen"]
[Black "emeli_chess"]
[Result "1-0"]
[WhiteElo "2513"]
[BlackElo "2351"]
[TimeControl "180+1"]
[EndTime "9:18:58 PDT"]
[Termination "MartinMatthiesen won by resignation"]

1. d4 {[%clk 0:02:54.2]} 1... Nf6 {[%clk 0:02:59.7]} 2. c4 {[%clk 0:02:53]} 2...
e6 {[%clk 0:02:59.8]} 3. Nf3 {[%clk 0:02:52.4]} 3... d5 {[%clk 0:02:59.6]} 4. g3
{[%clk 0:02:51.8]} 4... dxc4 {[%clk 0:02:59.3]} 5. Bg2 {[%clk 0:02:51.2]} 5...
Nc6 {[%clk 0:02:59.9]} 6. O-O {[%clk 0:02:50.6]} 6... Rb8 {[%clk 0:03:00.4]} 7.
e3 {[%clk 0:02:49.4]} 7... b5 {[%clk 0:03:00.1]} 8. Qe2 {[%clk 0:02:47.2]} 8...
Be7 {[%clk 0:02:51.2]} 9. Rd1 {[%clk 0:02:46.5]} 9... O-O {[%clk 0:02:50.3]} 10.
e4 {[%clk 0:02:41.5]} 10... Bd7 {[%clk 0:02:40.9]} 11. Bf4 {[%clk 0:02:32.9]}
11... Nb4 {[%clk 0:02:34]} 12. Ne1 {[%clk 0:02:32]} 12... Bc6 {[%clk 0:02:22.2]}
13. Nc3 {[%clk 0:02:29.2]} 13... a5 {[%clk 0:02:10]} 14. a3 {[%clk 0:02:27.1]}
14... Na6 {[%clk 0:02:09.8]} 15. a4 {[%clk 0:02:07.7]} 15... b4 {[%clk
0:01:58.5]} 16. Nb5 {[%clk 0:02:07.1]} 16... Bxb5 {[%clk 0:01:55.5]} 17. axb5
{[%clk 0:02:06.9]} 17... Rxb5 {[%clk 0:01:55.6]} 18. Qxc4 {[%clk 0:02:06.6]}
18... Qb8 {[%clk 0:01:46.1]} 19. Nd3 {[%clk 0:01:54.9]} 19... Qb7 {[%clk
0:01:41.6]} 20. Ne5 {[%clk 0:01:42.1]} 20... Bd6 {[%clk 0:01:32.7]} 21. Bf1
{[%clk 0:01:15]} 21... Rb6 {[%clk 0:01:30.7]} 22. Rxa5 {[%clk 0:01:14.1]} 22...
Ra8 {[%clk 0:01:23]} 23. f3 {[%clk 0:01:08.6]} 23... Nb8 {[%clk 0:01:18.7]} 24.
Rxa8 {[%clk 0:01:01.9]} 24... Qxa8 {[%clk 0:01:18.5]} 25. Nd3 {[%clk 0:00:54.7]}
25... Bxf4 {[%clk 0:01:14.2]} 26. Nxf4 {[%clk 0:00:52.1]} 26... Qc6 {[%clk
0:01:13.8]} 27. Qxc6 {[%clk 0:00:38.1]} 27... Rxc6 {[%clk 0:01:12.5]} 28. Ra1
{[%clk 0:00:37.2]} 28... Nbd7 {[%clk 0:01:08.6]} 29. Ra8+ {[%clk 0:00:35.2]}
29... Nf8 {[%clk 0:01:08.6]} 30. Rb8 {[%clk 0:00:28.6]} 30... Rb6 {[%clk
0:01:02.8]} 31. Rxb6 {[%clk 0:00:26.9]} 31... cxb6 {[%clk 0:01:03]} 32. Nd3
{[%clk 0:00:27.6]} 32... N8d7 {[%clk 0:00:59.8]} 33. Nxb4 {[%clk 0:00:25.8]}
33... e5 {[%clk 0:01:00.2]} 34. Nc6 {[%clk 0:00:23.3]} 34... exd4 {[%clk
0:00:58.6]} 35. Nxd4 {[%clk 0:00:24.2]} 35... Kf8 {[%clk 0:00:58.8]} 36. Kf2
{[%clk 0:00:23.6]} 36... Ke7 {[%clk 0:00:59]} 37. Nf5+ {[%clk 0:00:22.5]} 37...
Kf8 {[%clk 0:00:53.6]} 38. Ke3 {[%clk 0:00:20.7]} 38... g6 {[%clk 0:00:53.9]}
39. Nd6 {[%clk 0:00:19.7]} 39... Ke7 {[%clk 0:00:52.7]} 40. Nc4 {[%clk
0:00:19.4]} 40... Ne8 {[%clk 0:00:47.1]} 41. Be2 {[%clk 0:00:19.6]} 41... Nc7
{[%clk 0:00:46.9]} 42. f4 {[%clk 0:00:19.3]} 42... f6 {[%clk 0:00:46.7]} 43. Bg4
{[%clk 0:00:16.5]} 43... b5 {[%clk 0:00:46.5]} 44. Bxd7 {[%clk 0:00:16]} 44...
Kxd7 {[%clk 0:00:40.9]} 45. Nd2 {[%clk 0:00:14.3]} 45... Kd6 {[%clk 0:00:40.7]}
46. Kd4 {[%clk 0:00:14]} 46... Ne6+ {[%clk 0:00:40.8]} 47. Kc3 {[%clk 0:00:14]}
47... Nc5 {[%clk 0:00:39]} 48. b4 {[%clk 0:00:12.8]} 48... Ne6 {[%clk
0:00:36.6]} 49. Nb3 {[%clk 0:00:12.4]} 49... Nc7 {[%clk 0:00:32.9]} 50. Nd4
{[%clk 0:00:12.6]} 50... h5 {[%clk 0:00:32.9]} 51. Kd3 {[%clk 0:00:12.7]} 51...
g5 {[%clk 0:00:31.5]} 52. Ke3 {[%clk 0:00:12.5]} 52... h4 {[%clk 0:00:30.3]} 53.
gxh4 {[%clk 0:00:11.9]} 53... gxh4 {[%clk 0:00:29.2]} 54. Nf5+ {[%clk 0:00:12]}
54... Ke6 {[%clk 0:00:28.6]} 55. Nxh4 {[%clk 0:00:12.9]} 55... Ne8 {[%clk
0:00:28.4]} 56. Nf5 {[%clk 0:00:12.3]} 56... Nc7 {[%clk 0:00:27.9]} 57. Nd4+
{[%clk 0:00:12.1]} 57... Kd6 {[%clk 0:00:27.8]} 58. h4 {[%clk 0:00:12.2]} 58...
Ke7 {[%clk 0:00:27.9]} 59. h5 {[%clk 0:00:12.3]} 59... Kf7 {[%clk 0:00:28.1]}
60. e5 {[%clk 0:00:12.5]} 60... Nd5+ {[%clk 0:00:26.3]} 61. Ke4 {[%clk
0:00:12.2]} 61... Nxb4 {[%clk 0:00:26.8]} 62. e6+ {[%clk 0:00:12.5]} 62... Kg7
{[%clk 0:00:24.1]} 63. Nf5+ {[%clk 0:00:11.4]} 63... Kf8 {[%clk 0:00:23.5]} 64.
h6 {[%clk 0:00:11.1]} 64... Nc6 {[%clk 0:00:23.9]} 65. h7 {[%clk 0:00:10.8]} 1-0